bitfinex/quotes_ETHUSD_20210401
["timestamp","ask_amount","ask_price","bid_price","bid_amount"]
[1617247698815,0.14,1917.3,1916.7,0.301]
[1617247699215,7.82266,1917.1,1916.8,0.725]
[1617247699413,3.72333441,1917.4,1916.8,0.41]
[1617247700214,7.82202,1917.3,1916.8,0.69]
[1617247700413,7.82202,1917.3,1916.8,0.41]
[1617247701240,7.82202,1917.3,1916.9,5.01]
[1617247701444,3.58333441,1917.4,1916.9,0.1635742]
[1617247701641,3.58333441,1917.4,1916.9,5.1735742]
[1617247701839,3.58333441,1917.4,1917.0,1.2]
[1617247702040,3.58333441,1917.4,1917.0,1.6]
[1617247702239,1.74633441,1917.4,1917.0,1.6]
[1617247702846,1.74633441,1917.4,1917.1,3.64205618]
[1617247703048,1.74633441,1917.4,1917.1,5.23205618]
[1617247703887,1.74633441,1917.4,1917.2,7.81952]
[1617247704092,1.74633441,1917.4,1917.2,8.0]
[1617247704288,1.74633441,1917.4,1917.1,1.59]
[1617247704487,1.74633441,1917.4,1917.1,5.33]
[1617247704890,1.74633441,1917.4,1917.1,13.14975]
[1617247705088,14.48303441,1917.6,1917.1,13.14975]
[1617247705289,14.48303441,1917.6,1917.3,0.38]
[1617247705688,14.48303441,1917.6,1917.3,5.39]
[1617247705888,1.0,1917.9,1917.3,5.39]
[1617247706491,1.0,1917.9,1917.4,0.315]
[1617247706894,8.81944,1917.9,1917.4,0.47853154]
[1617247708094,6.97964,1917.9,1917.4,0.47853154]
[1617247708293,6.97964,1917.9,1917.4,0.85853154]
[1617247709920,6.97964,1917.9,1917.4,0.47853154]
[1617247711121,5.14174,1917.9,1917.4,0.47853154]
[1617247714148,3.30364,1917.9,1917.4,0.47853154]
[1617247714365,3.30364,1917.9,1917.5,0.38]
[1617247714570,3.30364,1917.9,1917.6,0.4]
[1617247714967,3.30364,1917.9,1917.5,0.28]
[1617247715166,3.30364,1917.9,1917.6,0.4]
[1617247715368,3.30364,1917.9,1917.5,5.29]
[1617247715568,3.30364,1917.9,1917.5,0.68]
[1617247715969,3.30364,1917.9,1917.4,8.3339273]
[1617247716169,2.77864403,1917.8,1917.4,0.16353154]
[1617247716371,7.82065,1917.6,1917.4,0.16353154]
[1617247716569,10.6038402,1917.6,1917.4,0.16353154]
[1617247716769,7.82065,1917.6,1917.4,0.16353154]
[1617247717194,5.98125,1917.6,1917.4,0.16353154]
[1617247717593,18.18715565,1917.5,1917.4,0.16353154]
[1617247717793,26.00865565,1917.5,1917.4,0.16353154]
[1617247718191,23.2215,1917.5,1917.4,0.16353154]
[1617247720040,23.2215,1917.5,1917.4,1.54e-06]
[1617247720241,21.3563,1917.5,1917.4,1.54e-06]
[1617247720442,0.14,1917.2,1916.4,0.28]
[1617247720642,7.82432,1916.8,1916.4,0.28]
[1617247720841,16.61192,1916.8,1916.4,0.28]
[1617247721843,16.61192,1916.8,1916.3,5.01]
[1617247722045,16.61192,1916.8,1916.2,0.4]
[1617247723243,14.77432,1916.8,1916.2,0.4]
[1617247725071,14.77432,1916.8,1916.3,0.336]
[1617247725072,8.7876,1916.8,1916.3,0.336]
[1617247725467,8.7876,1916.8,1916.5,0.39]
[1617247725865,6.9889,1917.2,1916.5,0.39]
[1617247726068,7.82345,1917.0,1916.5,0.39]
[1617247726267,5.98655,1917.0,1916.3,1.536]
[1617247726468,5.98655,1917.0,1916.4,0.39]
[1617247726867,0.14,1916.9,1916.2,0.68]
[1617247727068,3.74780314,1916.9,1916.2,0.68]
[1617247727268,7.82478,1916.7,1916.2,0.68]
[1617247727693,7.82478,1916.7,1916.4,0.4]
[1617247728092,7.82478,1916.7,1916.1,1.0]
[1617247728093,3.60780314,1916.6,1916.1,1.0]
[1617247728295,7.82615,1916.4,1916.1,1.0]
[1617247728493,3.60780314,1916.3,1916.1,1.0]
[1617247728692,11.50370314,1916.3,1916.1,1.0]
[1617247729093,7.8959,1916.3,1916.1,1.0]
[1617247729293,7.8959,1916.3,1916.1,1.38]
[1617247729294,6.0496,1916.3,1916.1,1.38]
[1617247730721,6.0496,1916.3,1916.1,9.38]
[1617247730922,6.0496,1916.3,1916.1,1.38]
[1617247731523,6.0496,1916.3,1916.1,9.0]
[1617247731723,6.0496,1916.3,1916.1,1.41]
[1617247732325,4.2107,1916.3,1916.1,1.41]
[1617247732984,4.2107,1916.3,1916.1,9.41]
[1617247733186,4.2107,1916.3,1916.1,1.41]
[1617247733581,4.2107,1916.3,1916.1,9.41]
[1617247733980,7.82553,1916.5,1916.1,9.0]
[1617247734383,11.43410306,1916.5,1916.1,1.0]
[1617247734781,7.82553,1916.5,1916.1,1.0]
[1617247735387,5.98673,1916.5,1916.1,1.0]
[1617247736385,5.98673,1916.5,1916.2,0.38]
[1617247736785,5.98673,1916.5,1916.1,1.28]
[1617247736984,5.98673,1916.5,1916.1,1.67]
[1617247737184,5.98673,1916.5,1916.1,1.39]
[1617247738391,4.14993,1916.5,1916.1,1.39]
[1617247738793,4.14993,1916.5,1916.1,1.0]
[1617247738994,7.75916994,1916.5,1916.1,1.0]
[1617247739196,2.75916994,1916.5,1916.1,1.0]
[1617247740193,2.087361,1916.4,1916.1,1.0]
[1617247741018,11.821061,1916.4,1916.1,1.0]
[1617247741418,9.977461,1916.4,1916.1,1.0]
[1617247741620,7.82686,1916.3,1916.1,1.0]
[1617247742025,7.82686,1916.3,1915.0,0.09406894]
[1617247742026,1.2,1916.2,1915.0,0.09406894]
[1617247742226,1.2,1916.2,1914.7,1.56816916]
[1617247742227,0.27218,1915.6,1914.7,1.56816916]
[1617247742430,0.27218,1915.6,1914.6,1.0]
[1617247742431,69.52526,1915.2,1914.6,1.0]
[1617247742627,7.83458,1914.8,1914.6,1.0]
[1617247742828,24.1854072,1914.7,1914.6,1.0]
[1617247743027,33.6994072,1914.7,1914.6,1.0]
[1617247743253,34.0994072,1914.7,1914.6,1.0]
[1617247743652,28.6994072,1914.7,1914.6,1.0]
[1617247744455,23.2701,1914.7,1914.6,1.0]
[1617247744655,9.514,1914.7,1914.6,1.0]
[1617247744854,8.0,1914.9,1914.6,1.4]
[1617247745053,23.72563045,1915.2,1914.7,0.41]
[1617247745054,17.08923045,1915.2,1914.7,0.41]
[1617247745255,12.21923045,1915.2,1914.7,0.41]
[1617247745455,7.83326,1915.1,1914.7,0.41]
[1617247745659,7.83326,1915.1,1914.6,1.0]
[1617247745878,0.41,1914.9,1914.6,1.0]
[1617247746082,3.61775122,1914.8,1914.6,1.0]
[1617247746680,19.6,1914.7,1914.6,0.95]
[1617247746879,29.2668,1914.7,1914.6,0.95]
[1617247747479,27.4269,1914.7,1914.6,0.95]
[1617247748081,27.8269,1914.7,1914.6,0.95]
[1617247748283,27.8269,1914.7,1914.1,1.0]
[1617247748284,59.0269,1914.7,1914.1,1.0]
[1617247748522,5.15,1914.5,1914.1,1.0]
[1617247748719,5.01,1914.4,1914.1,1.0]
[1617247749117,5.01,1914.3,1914.1,1.0]
[1617247749316,5.01,1914.4,1914.1,1.0]
[1617247749716,8.24775386,1914.3,1914.1,1.0]
[1617247749917,12.6962,1914.3,1914.1,1.0]
[1617247750119,31.5899275,1914.2,1914.1,0.95]
[1617247750519,29.6886275,1914.2,1914.1,0.95]
[1617247750720,28.35,1914.2,1914.1,0.95]
[1617247751523,59.55,1914.2,1914.1,0.95]
[1617247752520,59.55,1914.2,1913.6,1.0]
[1617247752521,31.2,1914.1,1913.6,1.0]
[1617247752722,6.21,1913.9,1913.6,1.0]
[1617247752922,29.25,1913.7,1913.6,1.0]
[1617247753121,28.85,1913.7,1913.6,1.0]
[1617247753321,58.85,1913.7,1913.6,1.0]
[1617247753522,57.0102,1913.7,1913.6,1.0]
[1617247753946,57.0102,1913.7,1913.6,2.0297814]
[1617247754143,34.84952,1913.7,1913.6,1.0]
[1617247754343,34.84952,1913.7,1913.6,0.95]
[1617247755544,64.84952,1913.7,1913.6,0.95]
[1617247756367,68.93546479,1913.7,1913.6,0.95]
[1617247756570,37.09616479,1913.7,1913.6,0.95]
[1617247759596,35.24746479,1913.7,1913.6,0.95]
[1617247759796,11.92526479,1913.7,1913.6,0.95]
[1617247759995,7.83932,1913.7,1913.6,0.95]
[1617247760594,17.88932,1913.7,1913.6,0.95]
[1617247760795,7.83932,1913.7,1913.6,0.95]
[1617247761195,7.83932,1913.7,1913.0,9.98852246]
[1617247761196,25.55,1913.6,1913.0,9.98852246]
[1617247761396,25.55,1913.6,1913.1,0.28]
[1617247761627,25.69,1913.6,1913.0,9.98852246]
[1617247761830,17.55,1913.6,1913.1,1.923]
[1617247762029,17.55,1913.6,1913.1,0.723]
[1617247762629,15.7092,1913.6,1913.1,0.343]
[1617247762828,15.7092,1913.6,1913.1,0.603]
[1617247763030,15.7092,1913.6,1913.1,0.143]
[1617247763230,23.54732,1913.6,1913.1,0.143]
[1617247763432,23.54732,1913.6,1913.5,0.39]
[1617247763433,7.83812,1913.6,1913.5,0.39]
[1617247763632,12.25708695,1914.0,1913.5,1.59]
[1617247763832,4.08560323,1914.0,1913.8,0.4]
[1617247764031,19.14314062,1914.3,1913.9,0.39]
[1617247764276,26.97909062,1914.3,1913.9,0.67]
[1617247764477,26.97909062,1914.3,1913.5,1.3149]
[1617247764478,29.93834,1914.3,1913.5,1.3149]
[1617247764676,29.93834,1914.3,1913.5,1.5949]
[1617247764677,22.10239,1914.3,1913.5,1.5949]
[1617247765274,22.10239,1914.3,1913.5,0.67]
[1617247765474,20.26289,1914.3,1913.6,1.61]
[1617247765674,20.26289,1914.3,1913.9,0.4]
[1617247766275,7.83705,1914.0,1913.9,0.4]
[1617247766474,7.83705,1914.0,1913.7,0.287]
[1617247766674,7.83705,1914.0,1913.8,0.39]
[1617247768675,5.99295,1914.0,1913.8,0.39]
[1617247768877,9.5640863,1914.0,1913.2,1.2]
[1617247769078,9.5640863,1914.0,1912.6,1.10694548]
[1617247769079,9.5640863,1914.0,1913.3,0.38]
[1617247769279,0.14,1913.9,1912.9,0.13337868]
[1617247769495,0.14,1913.9,1913.2,0.39]
[1617247769697,0.14,1913.9,1912.7,0.11410894]
[1617247769894,0.14,1913.9,1913.2,0.4]
[1617247770296,8.92939,1913.8,1913.2,0.4]
[1617247771097,10.45169,1913.6,1913.2,0.4]
[1617247771497,7.83825,1913.7,1913.2,0.4]
[1617247771697,5.99325,1913.7,1913.3,0.41]
[1617247771897,5.99325,1913.7,1913.5,0.39]
[1617247772121,5.01,1914.0,1913.5,0.39]
[1617247772322,7.83686,1913.8,1913.5,0.39]
[1617247772719,7.83686,1913.8,1913.0,1.2]
[1617247772921,7.97686,1913.8,1913.3,0.38]
[1617247773122,7.83686,1913.8,1913.4,0.39]
[1617247773320,7.83686,1913.8,1913.5,0.4]
[1617247773921,50.23538,1914.4,1913.3,0.287]
[1617247773922,34.73307106,1914.6,1913.7,22.0]
[1617247774122,29.5598497,1914.6,1914.4,0.4]
[1617247774323,29.01594062,1914.6,1914.4,8.0828]
[1617247774520,13.06163,1914.7,1914.4,8.0828]
[1617247774751,7.83434,1914.5,1914.4,8.0828]
[1617247775550,3.91717,1914.8,1914.4,8.0828]
[1617247775551,5.46495814,1914.9,1914.4,8.0828]
[1617247775752,7.83329,1914.7,1914.4,8.0828]
[1617247777590,5.99429,1914.7,1914.4,8.0828]
[1617247777989,5.99429,1914.7,1914.5,0.4]
[1617247779993,5.99429,1914.7,1914.4,1.2]
[1617247780199,5.99429,1914.7,1914.5,0.39]
[1617247780593,4.13429,1914.7,1914.4,1.2]
[1617247780794,4.13429,1914.7,1914.5,0.38]
[1617247782524,4.13429,1914.7,1914.6,0.4]
[1617247783725,2.29699,1914.7,1914.5,0.4]
[1617247784730,8.83277,1914.9,1914.5,5.41]
[1617247784927,8.83277,1914.9,1914.8,0.39]
[1617247785146,8.83277,1914.9,1914.8,9.2162]
[1617247785147,1.0,1914.9,1914.8,9.2162]
[1617247785349,1.0,1914.9,1914.8,10.4162]
[1617247785548,1.0,1914.9,1914.8,18.4162]
[1617247785747,1.0,1914.9,1914.8,22.2515]
[1617247785946,0.7047,1914.9,1914.8,22.0515]
[1617247786345,0.7047,1914.9,1914.8,27.0615]
[1617247786747,0.94446,1915.4,1914.8,27.0615]
[1617247786945,0.94446,1915.4,1915.0,0.4]
[1617247787546,0.94446,1915.4,1915.0,1.6]
[1617247789775,31.2208,1915.8,1915.2,0.39]
[1617247789977,0.14,1915.6,1915.0,1.2]
[1617247790178,0.14,1915.6,1915.1,0.4]
[1617247790397,7.83102,1915.4,1914.9,0.10939073]
[1617247792600,3.86778852,1915.3,1914.9,0.10939073]
[1617247792800,3.86778852,1915.3,1914.5,0.4]
[1617247792801,0.39,1915.1,1914.1,0.09406894]
[1617247793028,0.14,1914.8,1914.1,0.39]
[1617247793627,7.83526,1914.5,1914.1,0.39]
[1617247793828,14.64176,1914.5,1914.1,0.39]
[1617247795430,14.64176,1914.5,1914.3,0.38]
[1617247795431,6.8065,1914.5,1914.3,0.38]
[1617247795647,39.7909703,1915.1,1914.4,3.8515266]
[1617247795850,32.1262,1915.1,1914.6,0.41]
[1617247796048,31.9862,1915.1,1914.6,0.41]
[1617247796248,14.9327,1915.1,1914.7,1.2]
[1617247796450,14.9327,1915.1,1914.8,0.38]
[1617247797650,14.9327,1915.1,1915.0,0.15341227]
[1617247798272,21.8827,1915.1,1915.0,0.15341227]
[1617247798675,0.14,1915.0,1914.3,0.35]
[1617247798876,0.14,1915.0,1914.4,0.39]
[1617247799678,0.14,1915.0,1914.5,0.66]
[1617247799877,7.83279,1914.9,1914.6,1.2]
[1617247800077,7.83279,1914.9,1914.5,1.86]
[1617247800276,7.83279,1914.9,1914.8,6.0]
[1617247801702,5.99349,1914.9,1914.8,6.0]
[1617247801904,13.2346,1915.1,1914.8,7.2]
[1617247802105,41.84486984,1915.5,1915.0,0.4]
[1617247802106,28.66598,1915.5,1915.0,0.4]
[1617247802305,8.0,1915.4,1915.0,0.4]
[1617247802504,28.66598,1915.5,1915.0,0.68]
[1617247802704,18.222,1915.5,1915.2,0.18639192]
[1617247803307,26.05227,1915.5,1915.2,0.18639192]
[1617247803922,26.05227,1915.5,1915.2,0.59639192]
[1617247804123,18.222,1915.5,1915.2,1.79639192]
[1617247804526,18.222,1915.5,1915.3,0.38]
[1617247804727,14.0,1915.7,1915.4,0.4]
[1617247804926,14.0,1915.7,1915.6,0.4]
[1617247805325,11.8893,1915.7,1915.6,1.6]
[1617247805927,11.8893,1915.7,1915.6,8.32159944]
[1617247806149,11.8893,1915.7,1915.6,16.32159944]
[1617247806354,11.2345,1915.7,1915.6,28.73059944]
[1617247806551,11.2345,1915.7,1915.6,30.64409944]
[1617247806951,11.2345,1915.7,1915.6,28.9325]
[1617247808350,9.3956,1915.7,1915.6,28.9325]
[1617247811195,7.5574,1915.7,1915.6,28.9325]
[1617247811797,7.5574,1915.7,1915.6,30.4575763]
[1617247811999,7.5574,1915.7,1915.6,42.9575763]
[1617247812197,1.0,1915.9,1915.7,31.7]
[1617247812398,1.0,1915.9,1915.8,47.5859247]
[1617247812598,1.0,1915.9,1915.8,72.4759247]
[1617247812798,1.0,1915.9,1915.8,72.58818604]
[1617247812999,1.0,1915.9,1915.8,74.33935569]
[1617247814223,0.1585,1916.4,1915.8,26.62935569]
[1617247814422,0.1585,1916.4,1915.9,0.09406894]
[1617247814622,0.14,1916.5,1916.3,0.38]
[1617247814822,16.4525,1917.1,1916.3,0.38]
[1617247814823,0.07,1917.0,1916.3,0.38]
[1617247816025,5.01,1916.9,1916.3,0.38]
[1617247816226,0.07,1917.0,1915.9,0.09406894]
[1617247816227,7.82554,1916.7,1915.9,0.09406894]
[1617247816425,7.82554,1916.7,1916.2,0.39]
[1617247817250,0.98464,1916.7,1916.3,0.38]
[1617247817452,0.98464,1916.7,1915.8,0.09406894]
[1617247817652,0.98464,1916.7,1915.9,0.4]
[1617247817653,10.60994,1916.7,1915.9,0.4]
[1617247817851,10.60994,1916.7,1916.4,0.13007076]
[1617247817852,5.01,1916.6,1916.4,0.13007076]
[1617247818251,8.08135707,1916.6,1916.4,0.13007076]
[1617247818453,36.71,1916.5,1916.4,0.13007076]
[1617247818654,36.71,1916.5,1915.4,3.58854304]
[1617247818655,27.65,1916.4,1915.6,0.38]
[1617247818854,7.82808,1916.1,1915.6,0.38]
[1617247819053,17.15728,1916.1,1915.6,0.66]
[1617247819478,17.15728,1916.1,1915.7,0.38]
[1617247820273,10.31968,1916.1,1915.7,0.38]
[1617247820675,10.31968,1916.1,1915.9,0.4]
[1617247820873,9.3292,1916.1,1915.9,0.4]
[1617247821900,9.3292,1916.1,1915.9,0.56365529]
[1617247822720,9.3292,1916.1,1916.0,0.11504914]
[1617247823315,7.4876,1916.1,1916.0,0.11504914]
[1617247824116,0.07,1916.4,1916.0,0.11504914]
[1617247825945,7.89714,1916.4,1916.0,0.11504914]
[1617247826344,6.05634,1916.4,1916.0,0.51504914]
[1617247826745,6.05634,1916.4,1916.1,0.39]
[1617247826946,31.6167,1916.6,1916.1,0.39]
[1617247827353,31.6167,1916.6,1916.2,0.16364248]
[1617247827753,31.6167,1916.6,1916.5,0.16877201]
[1617247827950,16.9245,1916.6,1916.5,0.16877201]
[1617247828150,16.7845,1916.6,1916.5,0.16877201]
[1617247829351,14.9448,1916.6,1916.5,0.16877201]
[1617247831578,14.8948,1916.6,1916.5,0.57877201]
[1617247832400,13.0417,1916.6,1916.5,0.57877201]
[1617247834403,25.7287,1917.1,1916.5,0.57877201]
[1617247834604,25.7287,1917.1,1916.5,0.697]
[1617247834805,25.7287,1917.1,1916.7,0.4]
[1617247835024,11.4425,1917.1,1916.7,0.4]
[1617247835425,9.6022,1917.1,1916.7,0.4]
[1617247836028,9.6022,1917.1,1917.0,0.4]
[1617247836228,1.0,1917.4,1917.0,0.68]
[1617247837229,1.0,1917.4,1917.0,7.6641]
[1617247837856,1.0,1917.4,1917.3,0.18432818]
[1617247838455,6.98315,1917.5,1917.3,0.56432818]
[1617247839455,6.98315,1917.5,1917.3,0.69303816]
[1617247840059,0.2,1918.0,1917.4,10.6715787]
[1617247840296,0.2,1918.0,1917.6,0.39]
[1617247840297,0.95,1917.9,1917.6,0.39]
[1617247841095,8.77087,1917.9,1917.3,1.94830998]
[1617247841297,8.77087,1917.9,1917.4,0.41]
[1617247841493,6.89837,1917.9,1917.5,0.38]
[1617247842297,6.89837,1917.9,1917.6,6.39]
[1617247842696,0.34,1918.0,1917.8,0.15129949]
[1617247843700,0.34,1918.0,1917.9,0.16350597]
[1617247843900,0.2,1918.0,1917.9,0.16350597]
[1617247844100,0.2,1918.0,1917.9,0.56350597]
[1617247844502,20.5575,1918.1,1917.9,0.16350597]
[1617247845102,20.5575,1918.1,1917.9,0.29153536]
[1617247845525,20.5575,1918.1,1918.0,0.4]
[1617247846125,20.5575,1918.1,1917.9,0.29153536]
[1617247846325,15.5475,1918.1,1917.9,0.29153536]
[1617247847326,15.5475,1918.1,1917.9,0.67153536]
[1617247847527,13.7039,1918.1,1917.9,0.67153536]
[1617247848355,13.7039,1918.1,1917.9,0.29153536]
[1617247848552,13.7039,1918.1,1917.9,6.29153536]
[1617247848955,13.7039,1918.1,1917.9,5.37338948]
[1617247850554,11.866,1918.1,1917.9,5.78338948]
[1617247850985,11.866,1918.1,1917.9,5.90052743]
[1617247853387,12.91621139,1918.1,1917.9,5.49052743]
[1617247853590,10.0191,1918.1,1917.9,5.49052743]
[1617247853985,7.81978,1918.2,1917.9,5.49052743]
[1617247856586,5.93478,1918.2,1917.9,5.89052743]
[1617247859588,4.09498,1918.2,1917.9,5.49052743]
[1617247859987,8.17306143,1918.2,1917.9,5.49052743]
[1617247862610,6.33556143,1918.2,1917.9,5.49052743]
[1617247863211,21.01,1918.0,1917.9,5.49052743]
[1617247864038,16.0,1918.0,1917.9,5.49052743]
[1617247865638,14.1593,1918.0,1917.9,5.49052743]
[1617247865837,4.07808143,1918.2,1917.9,5.49052743]
[1617247866665,16.51,1918.0,1917.9,5.49052743]
[1617247867062,17.53982809,1918.0,1917.9,5.49052743]
[1617247867262,16.51,1918.0,1917.9,5.49052743]
[1617247868662,14.6675,1918.0,1917.9,5.49052743]
[1617247869064,3.1675,1918.0,1917.9,5.88052743]
[1617247869312,11.91085,1918.3,1917.9,9.37412307]
[1617247869313,8.0,1918.3,1917.9,9.37412307]
[1617247869508,8.0,1918.3,1917.9,5.88052743]
[1617247869707,20.02819286,1918.4,1917.9,5.88052743]
[1617247869909,7.81934,1918.2,1917.9,5.88052743]
[1617247871308,7.81934,1918.2,1918.0,0.4]
[1617247871508,7.81934,1918.2,1918.1,0.39]
[1617247871709,5.98094,1918.2,1918.1,0.39]
[1617247872911,5.98094,1918.2,1917.9,5.49052743]
[1617247873110,5.98094,1918.2,1917.9,5.87052743]
[1617247874740,4.14104,1918.2,1917.9,5.87052743]
[1617247875140,9.15104,1918.2,1917.9,5.49052743]
[1617247875541,4.14104,1918.2,1918.0,0.4]
[1617247876340,4.14104,1918.2,1917.9,5.49052743]
[1617247877763,2.29904,1918.2,1917.9,5.87052743]
[1617247878964,10.42649,1918.3,1917.9,5.87052743]
[1617247879166,13.82904,1918.4,1918.1,0.39]
[1617247879365,1.0,1918.4,1918.1,0.39]
[1617247879792,1.0,1918.4,1918.2,0.41]
[1617247880790,7.52421646,1918.6,1918.2,0.41]
[1617247882821,12.53421646,1918.6,1918.2,0.41]
[1617247883624,12.53421646,1918.6,1918.1,0.11712005]
[1617247883827,10.69121646,1918.6,1918.3,0.4]
[1617247884423,10.69121646,1918.6,1918.1,0.39712005]
[1617247884424,10.69121646,1918.6,1918.1,0.78712005]
[1617247886060,10.69121646,1918.6,1918.1,1.98712005]
[1617247886261,5.68121646,1918.6,1918.1,1.98712005]
[1617247886658,3.84031646,1918.6,1918.1,1.98712005]
[1617247886859,3.84031646,1918.6,1918.3,0.4]
[1617247888666,7.81753,1918.7,1918.3,0.4]
[1617247889870,5.97443,1918.7,1918.3,0.4]
[1617247890499,37.0305507,1918.8,1918.3,0.708]
[1617247890898,22.3306507,1918.8,1918.4,1.2]
[1617247891099,22.3306507,1918.8,1918.3,0.708]
[1617247891298,22.3306507,1918.8,1918.3,0.4]
[1617247891900,22.3306507,1918.8,1918.7,0.38]
[1617247892102,18.2531,1918.8,1918.7,6.941]
[1617247892302,0.5109,1918.9,1918.7,10.40684708]
[1617247892702,31.77219327,1919.4,1918.7,10.40684708]
[1617247892926,31.77219327,1919.4,1919.0,0.41]
[1617247892927,31.22819001,1919.4,1919.0,0.41]
[1617247893122,31.22819001,1919.4,1918.7,6.941]
[1617247893123,15.15,1919.3,1918.9,0.39]
[1617247893323,5.01,1919.1,1918.9,0.39]
[1617247893924,4.96,1919.1,1918.7,6.561]
[1617247894124,4.96,1919.1,1918.7,6.951]
[1617247894324,22.9654,1919.3,1918.7,6.951]
[1617247894724,22.9654,1919.3,1918.8,0.4]
[1617247895325,27.9754,1919.3,1918.8,0.4]
[1617247895744,26.1326,1919.3,1918.8,0.4]
[1617247895945,12.8254,1919.3,1918.9,0.39]
[1617247896145,7.8154,1919.3,1918.9,0.684]
[1617247896345,18.66696001,1919.4,1919.0,0.41]
[1617247896549,18.66696001,1919.4,1919.1,0.38]
[1617247896744,4.21626001,1919.4,1919.1,6.3583]
[1617247897146,4.07626001,1919.4,1919.2,0.4]
[1617247897345,34.77074736,1919.8,1919.3,0.4]
[1617247897572,34.77074736,1919.8,1919.3,0.743]
[1617247897573,19.74104736,1919.8,1919.3,0.743]
[1617247897774,7.81411,1919.7,1919.3,0.743]
[1617247898175,7.81411,1919.7,1919.3,0.86005565]
[1617247898778,5.96991,1919.7,1919.3,0.86005565]
[1617247899174,5.91991,1919.7,1919.3,0.86005565]
[1617247899376,18.4437,1919.8,1919.4,0.39]
[1617247899573,18.4437,1919.8,1919.5,0.39]
[1617247899776,18.4437,1919.8,1919.5,6.568]
[1617247900373,18.4437,1919.8,1919.5,6.70118567]
[1617247901821,16.5359,1919.8,1919.5,6.70118567]
[1617247903424,21.5459,1919.8,1919.5,6.31118567]
[1617247903623,16.5359,1919.8,1919.5,6.31118567]
[1617247904224,16.5359,1919.8,1919.5,7.43171987]
[1617247904425,16.5359,1919.8,1919.5,7.84171987]
[1617247904825,14.6991,1919.8,1919.5,7.84171987]
[1617247905025,6.15,1919.9,1919.5,7.84171987]
[1617247905226,5.01,1919.8,1919.5,7.84171987]
[1617247906847,5.01,1919.8,1919.5,7.43171987]
[1617247907948,3.1722,1919.8,1919.5,6.42821987]
[1617247908146,14.41180432,1919.8,1919.5,6.42821987]
[1617247908772,14.41180432,1919.8,1919.5,6.1950342]
[1617247909373,10.98572,1919.8,1919.5,6.1950342]
[1617247909773,14.89297,1919.8,1919.5,6.1950342]
[1617247909975,7.07945,1919.8,1919.5,6.1950342]
[1617247910174,12.82393,1919.7,1919.5,6.1950342]
[1617247910375,7.81393,1919.7,1919.5,6.1950342]
[1617247910973,5.97683,1919.7,1919.5,6.1950342]
[1617247911201,5.97683,1919.7,1919.5,6.29503062]
[1617247912904,9.4041518,1919.7,1919.5,6.29503062]
[1617247913101,12.06,1919.6,1919.5,6.29503062]
[1617247913302,7.05,1919.6,1919.5,6.29503062]
[1617247913503,18.20563296,1919.7,1919.5,6.29503062]
[1617247913708,4.07626741,1919.7,1919.5,6.29503062]
[1617247913939,10.96212907,1920.0,1919.5,6.29503062]
[1617247913940,10.26382907,1920.0,1919.5,6.29503062]
[1617247914139,4.07616241,1919.9,1919.5,6.29503062]
[1617247914340,4.07616241,1919.9,1919.6,0.39]
[1617247914741,4.07616241,1919.9,1919.5,0.11703062]
[1617247914742,11.88931241,1919.9,1919.5,0.11703062]
[1617247914939,11.88931241,1919.9,1919.5,0.50703062]
[1617247915145,4.07616241,1919.9,1919.5,0.50703062]
[1617247916141,4.07616241,1919.9,1919.5,0.11703062]
[1617247916944,2.23746241,1919.9,1919.5,0.11703062]
[1617247917344,2.13746241,1919.9,1919.5,0.11703062]
[1617247918745,2.13746241,1919.9,1919.5,0.52703062]
[1617247918948,2.13746241,1919.9,1919.5,1.72703062]
[1617247919969,0.29446241,1919.9,1919.5,1.72703062]
[1617247920169,7.95245,1920.0,1919.5,1.72703062]
[1617247920369,7.95245,1920.0,1919.5,2.04903062]
[1617247920772,7.95245,1920.0,1919.6,0.39]
[1617247920972,2.9946617,1920.1,1919.7,0.4]
[1617247920973,0.911235,1920.1,1919.7,0.4]
[1617247921173,0.911235,1920.1,1919.7,0.778]
[1617247921370,0.911235,1920.1,1919.8,1.2]
[1617247921575,0.911235,1920.1,1919.9,0.336]
[1617247922398,0.811235,1920.1,1919.8,9.3996368]
[1617247922596,0.811235,1920.1,1919.9,0.39]
[1617247922996,7.733645,1920.4,1920.0,0.684]
[1617247923197,16.95,1920.3,1919.9,0.28]
[1617247923597,24.76118,1920.3,1919.8,3.3490068]
[1617247923797,24.76118,1920.3,1919.8,0.22602313]
[1617247924201,3.35525976,1920.2,1919.8,0.22602313]
[1617247924426,13.77397687,1919.8,1919.7,0.28]
[1617247925024,13.77397687,1919.8,1919.6,1.2]
[1617247925232,13.77397687,1919.8,1919.5,10.79449]
[1617247925425,13.77397687,1919.8,1919.5,10.41449]
[1617247925625,13.77397687,1919.8,1919.5,10.81449]
[1617247925826,13.77397687,1919.8,1919.7,0.39]
[1617247926026,11.93507687,1919.8,1919.7,0.39]
[1617247926625,11.93507687,1919.8,1919.7,0.32]
[1617247926829,11.93507687,1919.8,1919.6,1.32336827]
[1617247927049,11.93507687,1919.8,1919.6,0.12336827]
[1617247928854,10.09357687,1919.8,1919.7,1.2]
[1617247929051,10.09357687,1919.8,1919.7,1.58]
[1617247929891,10.09357687,1919.8,1919.7,1.2]